fUST/lending_fUST_20250527
["ID","MTS","AMOUNT","RATE_DAILY","PERIOD"]
[362432629,1748286646841,-430.0,0.00024657,3]
[362432630,1748286646851,-606.22,0.00024657,3]
[362432631,1748286646860,-430.0,0.00024657,3]
[362432632,1748286646869,-450.0,0.00024657,3]
[362432633,1748286646878,-430.0,0.00024657,3]
[362432634,1748286646888,-430.0,0.00024657,3]
[362432635,1748286646897,-470.0,0.00024657,3]
[362432636,1748286646906,-606.22,0.00024657,3]
[362432637,1748286646915,-430.0,0.00024657,3]
[362432638,1748286646924,-606.22,0.00024657,3]
[362432639,1748286646934,-430.0,0.00024657,3]
[362432640,1748286646943,-606.22,0.00024657,3]
[362432641,1748286646952,-430.0,0.00024657,3]
[362432642,1748286646962,-606.22,0.00024657,3]
[362432643,1748286646971,-430.0,0.00024657,3]
[362432644,1748286646981,-606.22,0.00024657,3]
[362432645,1748286646990,-151.0,0.00024657,7]
[362432646,1748286646999,-430.0,0.00024657,3]
[362432647,1748286647009,-165.908625,0.00024657,7]
[362432648,1748286647023,-151.0,0.00024657,7]
[362432649,1748286647033,-165.908625,0.00024657,7]
[362432650,1748286647043,-430.0,0.00024657,3]
[362432651,1748286647052,-606.22,0.00024657,3]
[362432652,1748286647062,-430.0,0.00024657,3]
[362432653,1748286647072,-606.22,0.00024657,3]
[362432654,1748286647081,-430.0,0.00024657,3]
[362432655,1748286647090,-172.693129,0.00024657,7]
[362432656,1748286647101,-606.32913797,0.00024657,3]
[362432657,1748286647111,-430.0,0.00024657,3]
[362432658,1748286647120,-165.908625,0.00024657,7]
[362432659,1748286647129,-430.0,0.00024657,3]
[362432660,1748286647139,-165.908625,0.00024657,7]
[362432661,1748286647148,-430.0,0.00024657,3]
[362432662,1748286647157,-430.0,0.00024657,3]
[362432663,1748286647166,-430.0,0.00024657,3]
[362432664,1748286647175,-430.0,0.00024657,3]
[362432665,1748286647184,-165.908625,0.00024657,7]
[362432666,1748286647195,-430.0,0.00024657,3]
[362432667,1748286647204,-430.0,0.00024657,3]
[362432668,1748286647213,-430.0,0.00024657,3]
[362432669,1748286647223,-430.0,0.00024657,3]
[362432670,1748286647232,-430.0,0.00024657,3]
[362432671,1748286647241,-430.0,0.00024657,3]
[362432672,1748286647250,-165.908625,0.00024657,7]
[362432673,1748286647259,-450.0,0.00024657,3]
[362432674,1748286647268,-430.0,0.00024657,3]
[362432675,1748286647278,-430.0,0.00024657,3]
[362432676,1748286647287,-165.908625,0.00024657,7]
[362432677,1748286647296,-430.0,0.00024657,3]
[362432678,1748286647305,-165.908625,0.00024657,7]
[362432679,1748286647314,-430.0,0.00024657,3]
[362432680,1748286647323,-430.0,0.00024657,3]
[362432681,1748286647333,-430.0,0.00024657,3]
[362432682,1748286647343,-165.908625,0.00024657,7]
[362432683,1748286647352,-430.0,0.00024657,3]
[362432684,1748286647362,-430.0,0.00024657,3]
[362432685,1748286647371,-430.0,0.00024657,3]
[362432686,1748286647381,-165.908625,0.00024657,7]
[362432687,1748286647391,-430.0,0.00024657,3]
[362432688,1748286647400,-430.0,0.00024657,3]
[362432689,1748286647411,-430.0,0.00024657,3]
[362432690,1748286647421,-430.0,0.00024657,3]
[362432691,1748286647430,-165.908625,0.00024657,7]
[362432692,1748286647440,-430.0,0.00024657,3]
[362432693,1748286647450,-430.0,0.00024657,3]
[362432694,1748286647459,-430.0,0.00024657,3]
[362432695,1748286647468,-165.908625,0.00024657,7]
[362432696,1748286647478,-430.0,0.00024657,3]
[362432697,1748286647588,-430.0,0.00024657,3]
[362432698,1748286647598,-430.0,0.00024657,3]
[362432699,1748286647608,-165.908625,0.00024657,7]
[362432700,1748286647617,-430.0,0.00024657,3]
[362432701,1748286647627,-430.0,0.00024657,3]
[362432702,1748286647641,-430.0,0.00024657,3]
[362432703,1748286647651,-165.908625,0.00024657,7]
[362432704,1748286647661,-430.0,0.00024657,3]
[362432705,1748286647671,-430.0,0.00024657,3]
[362432706,1748286647680,-165.908625,0.00024657,7]
[362432707,1748286647690,-430.0,0.00024657,3]
[362432708,1748286647699,-500.0,0.00024657,2]
[362432709,1748286647709,-430.0,0.00024657,3]
[362432710,1748286647719,-430.0,0.00024657,3]
[362432711,1748286647728,-430.0,0.00024657,3]
[362432712,1748286647738,-500.0,0.00024657,2]
[362432713,1748286647747,-430.0,0.00024657,3]
[362432714,1748286647757,-573.50399394,0.00024657,3]
[362432715,1748286647767,-500.0,0.00024657,2]
[362432716,1748286647777,-430.0,0.00024657,3]
[362432717,1748286647787,-430.0,0.00024657,3]
[362432718,1748286647796,-430.0,0.00024657,3]
[362432719,1748286647806,-500.0,0.00024657,2]
[362432720,1748286647815,-470.0,0.00024657,3]
[362432721,1748286647825,-430.0,0.00024657,3]
[362432722,1748286647834,-430.0,0.00024657,3]
[362432723,1748286647844,-165.908625,0.00024657,7]
[362432724,1748286647853,-430.0,0.00024657,3]
[362432725,1748286647862,-430.0,0.00024657,3]
[362432726,1748286647871,-165.908625,0.00024657,7]
[362432727,1748286647881,-267.27,0.00024657,3]
[362432728,1748286647891,-430.0,0.00024657,3]
[362432729,1748286647900,-165.908625,0.00024657,7]
[362432730,1748286647910,-430.0,0.00024657,3]
[362432731,1748286647920,-165.908625,0.00024657,7]
[362432732,1748286647929,-430.0,0.00024657,3]
[362432733,1748286647939,-165.908629,0.00024657,7]
[362432734,1748286647948,-430.0,0.00024657,3]
[362432735,1748286647958,-430.0,0.00024657,3]
[362432736,1748286647967,-430.0,0.00024657,3]
[362432737,1748286647976,-430.0,0.00024657,3]
[362432738,1748286647986,-1209.96,0.00024657,3]
[362432739,1748286647996,-430.0,0.00024657,3]
[362432740,1748286648006,-1209.96,0.00024657,3]
[362432741,1748286648016,-430.0,0.00024657,3]
[362432742,1748286648028,-430.0,0.00024657,3]
[362432743,1748286648038,-1209.96,0.00024657,3]
[362432744,1748286648048,-430.0,0.00024657,3]
[362432745,1748286648057,-1209.96,0.00024657,3]
[362432746,1748286648068,-430.0,0.00024657,3]
[362432747,1748286648077,-430.0,0.00024657,3]
[362432748,1748286648087,-430.0,0.00024657,3]
[362432749,1748286648097,-430.0,0.00024657,3]
[362432750,1748286648108,-1209.96,0.00024657,3]
[362432751,1748286648119,-430.0,0.00024657,3]
[362432752,1748286648128,-210.0,0.00024657,3]
[362432753,1748286648138,-430.0,0.00024657,3]
[362432754,1748286648148,-430.0,0.00024657,3]
[362432755,1748286648158,-1209.96,0.00024657,3]
[362432756,1748286648168,-430.0,0.00024657,3]
[362432757,1748286648177,-1209.96,0.00024657,3]
[362432758,1748286648186,-430.0,0.00024657,3]
[362432759,1748286648196,-1209.96,0.00024657,3]
[362432760,1748286648205,-1209.96,0.00024657,3]
[362432761,1748286648215,-1209.96,0.00024657,3]
[362432762,1748286648224,-1209.96,0.00024657,3]
[362432763,1748286648234,-1209.96,0.00024657,3]
[362432764,1748286648243,-430.0,0.00024657,3]
[362432765,1748286648253,-1209.96,0.00024657,3]
[362432766,1748286648262,-1209.96,0.00024657,3]
[362432767,1748286648272,-430.0,0.00024657,3]
[362432768,1748286648281,-740.09,0.00024657,3]
[362432769,1748286648291,-740.09,0.00024657,3]
[362432770,1748286648301,-430.0,0.00024657,3]
[362432771,1748286648311,-1209.96,0.00024657,3]
[362432772,1748286648320,-430.0,0.00024657,3]
[362432773,1748286648330,-740.09,0.00024657,3]
[362432774,1748286648339,-554.26,0.00024657,3]
[362432775,1748286648349,-470.0,0.00024657,3]
[362432776,1748286648358,-740.09,0.00024657,3]
[362432777,1748286648368,-740.09,0.00024657,3]
[362432778,1748286648377,-1209.96,0.00024657,3]
[362432779,1748286648387,-740.09,0.00024657,3]
[362432780,1748286648396,-1209.96,0.00024657,3]
[362432781,1748286648405,-740.09,0.00024657,3]
[362432782,1748286648415,-1209.96,0.00024657,3]
[362432783,1748286648424,-740.09,0.00024657,3]
[362432784,1748286648435,-1209.96,0.00024657,3]
[362432785,1748286648444,-740.09,0.00024657,3]
[362432786,1748286648454,-430.0,0.00024657,3]
[362432787,1748286648463,-1209.96,0.00024657,3]
[362432788,1748286648473,-453.83643165,0.00024657,3]
[362432789,1748286648483,-740.09,0.00024657,3]
[362432790,1748286648492,-1209.96,0.00024657,3]
[362432791,1748286648502,-740.09,0.00024657,3]
[362432792,1748286648513,-1209.96,0.00024657,3]
[362432793,1748286648524,-370.0,0.00024657,3]
[362432794,1748286648534,-740.09,0.00024657,3]
[362432795,1748286648544,-1209.96,0.00024657,3]
[362432796,1748286648554,-740.09,0.00024657,3]
[362432797,1748286648564,-1210.14208389,0.00024657,3]
[362432798,1748286648574,-740.09,0.00024657,3]
[362432799,1748286648584,-740.09,0.00024657,3]
[362432800,1748286648594,-430.0,0.00024657,3]
[362432801,1748286648605,-740.09,0.00024657,3]
[362432802,1748286648615,-430.0,0.00024657,3]
[362432803,1748286648624,-740.09,0.00024657,3]
[362432804,1748286648634,-430.0,0.00024657,3]
[362432805,1748286648644,-430.0,0.00024657,3]
[362432806,1748286648654,-740.09,0.00024657,3]
[362432807,1748286648664,-430.0,0.00024657,3]
[362432808,1748286648674,-430.0,0.00024657,3]
[362432809,1748286648684,-450.0,0.00024657,3]
[362432810,1748286648694,-740.09,0.00024657,3]
[362432811,1748286648704,-430.0,0.00024657,3]
[362432812,1748286648714,-430.0,0.00024657,3]
[362432813,1748286648723,-740.09,0.00024657,3]
[362432814,1748286648733,-430.0,0.00024657,3]
[362432815,1748286648743,-430.0,0.00024657,3]
[362432816,1748286648753,-740.09,0.00024657,3]
[362432817,1748286648772,-430.0,0.00024657,3]
[362432818,1748286648787,-430.0,0.00024657,3]
[362432819,1748286648798,-740.09,0.00024657,3]
[362432820,1748286648809,-430.0,0.00024657,3]
[362432821,1748286648820,-430.0,0.00024657,3]
[362432822,1748286648829,-740.09,0.00024657,3]
[362432823,1748286648840,-430.0,0.00024657,3]
[362432824,1748286648850,-430.0,0.00024657,3]
[362432825,1748286648860,-740.09251035,0.00024657,3]
[362432826,1748286648870,-430.0,0.00024657,3]
[362432827,1748286648881,-430.0,0.00024657,3]
[362432828,1748286648891,-430.0,0.00024657,3]
[362432829,1748286648901,-430.0,0.00024657,3]
[362432830,1748286648911,-430.0,0.00024657,3]
[362432831,1748286648921,-430.0,0.00024657,3]
[362432832,1748286648931,-430.0,0.00024657,3]
[362432833,1748286648941,-151.0,0.00024657,7]
[362432834,1748286648952,-430.0,0.00024657,3]
[362432835,1748286648961,-151.0,0.00024657,7]
[362432836,1748286648971,-430.0,0.00024657,3]
[362432837,1748286648981,-1957.96,0.00024657,3]
[362432838,1748286648991,-430.0,0.00024657,3]
[362432839,1748286649002,-151.0,0.00024657,7]
[362432840,1748286649012,-1957.96,0.00024657,3]
[362432841,1748286649024,-430.0,0.00024657,3]
[362432842,1748286649034,-2579.24,0.00024657,3]
[362432843,1748286649044,-151.0,0.00024657,7]
[362432844,1748286649173,-430.0,0.00024657,3]
[362432845,1748286649189,-1957.96,0.00024657,3]
[362432846,1748286649198,-430.0,0.00024657,3]
[362432847,1748286649208,-2579.24,0.00024657,3]
[362432848,1748286649217,-430.0,0.00024657,3]
[362432849,1748286649228,-151.0,0.00024657,7]
[362432850,1748286649237,-1957.96,0.00024657,3]
[362432851,1748286649247,-2579.24,0.00024657,3]
[362432852,1748286649256,-430.0,0.00024657,3]
[362432853,1748286649266,-430.0,0.00024657,3]
[362432854,1748286649275,-151.0,0.00024657,7]
[362432855,1748286649284,-430.0,0.00024657,3]
[362432856,1748286649295,-2579.24,0.00024657,3]
[362432857,1748286649304,-363.14,0.00024657,3]
[362432858,1748286649313,-1957.96,0.00024657,3]
[362432859,1748286649323,-2579.24,0.00024657,3]
[362432860,1748286649333,-430.0,0.00024657,3]
[362432861,1748286649343,-151.0,0.00024657,7]
[362432862,1748286649358,-1957.96,0.00024657,3]
[362432863,1748286649368,-430.0,0.00024657,3]
[362432864,1748286649378,-151.0,0.00024657,7]
[362432865,1748286649388,-2579.24,0.00024657,3]
[362432866,1748286649398,-1957.96,0.00024657,3]
[362432867,1748286649407,-2579.24,0.00024657,3]
[362432868,1748286649417,-151.0,0.00024657,7]
[362432869,1748286649427,-430.0,0.00024657,3]
[362432870,1748286649437,-1957.96,0.00024657,3]
[362432871,1748286649446,-430.0,0.00024657,3]
[362432872,1748286649457,-2579.24,0.00024657,3]
[362432873,1748286649467,-430.0,0.00024657,3]
[362432874,1748286649477,-151.0,0.00024657,7]
[362432875,1748286649486,-1957.96,0.00024657,3]
[362432876,1748286649496,-480.08978909,0.00024657,3]
[362432877,1748286649506,-2579.24,0.00024657,3]
[362432878,1748286649516,-430.0,0.00024657,3]
[362432879,1748286649526,-1957.96,0.00024657,3]
[362432880,1748286649535,-451.19754418,0.00024657,3]
[362432881,1748286649545,-2579.24,0.00024657,3]
[362432882,1748286649555,-407.5,0.00024657,3]
[362432883,1748286649566,-1957.96,0.00024657,3]
[362432884,1748286649576,-2579.24,0.00024657,3]
[362432885,1748286649585,-1957.96,0.00024657,3]
[362432886,1748286649595,-151.0,0.00024657,7]
[362432887,1748286649605,-2579.24,0.00024657,3]
[362432888,1748286649615,-1957.96,0.00024657,3]
[362432889,1748286649625,-224.270736,0.00024657,7]
[362432890,1748286649635,-2579.24,0.00024657,3]
[362432891,1748286649645,-401.38863642,0.00024657,3]
[362432892,1748286649655,-1957.96,0.00024657,3]
[362432893,1748286649666,-2579.24,0.00024657,3]
[362432894,1748286649676,-430.0,0.00024657,3]
[362432895,1748286649686,-1957.96,0.00024657,3]
[362432896,1748286649696,-2579.24,0.00024657,3]
[362432897,1748286649706,-430.0,0.00024657,3]
[362432898,1748286649717,-1957.96,0.00024657,3]
[362432899,1748286649726,-2579.24,0.00024657,3]
[362432900,1748286649736,-1957.96,0.00024657,3]
[362432901,1748286649746,-450.0,0.00024657,3]
[362432902,1748286649756,-2579.24,0.00024657,3]
[362432903,1748286649767,-1957.96,0.00024657,3]
[362432904,1748286649777,-430.0,0.00024657,3]
[362432905,1748286649787,-450.0,0.00024657,3]
[362432906,1748286649797,-2579.24,0.00024657,3]
[362432907,1748286649807,-1957.96,0.00024657,3]
[362432908,1748286649818,-430.0,0.00024657,3]
[362432909,1748286649830,-2579.24,0.00024657,3]
[362432910,1748286649840,-1957.96,0.00024657,3]
[362432911,1748286649850,-430.0,0.00024657,3]
[362432912,1748286649861,-2579.24,0.00024657,3]
[362432913,1748286649871,-430.0,0.00024657,3]
[362432914,1748286649881,-1957.96,0.00024657,3]
[362432915,1748286649890,-430.0,0.00024657,3]
[362432916,1748286649900,-2579.24,0.00024657,3]
[362432917,1748286649910,-430.0,0.00024657,3]
[362432918,1748286649920,-1957.96,0.00024657,3]
[362432919,1748286649932,-430.0,0.00024657,3]
[362432920,1748286649942,-2579.24,0.00024657,3]
[362432921,1748286649952,-430.0,0.00024657,3]
[362432922,1748286649964,-1957.96,0.00024657,3]
[362432923,1748286649977,-2579.24,0.00024657,3]
[362432924,1748286649989,-430.0,0.00024657,3]
[362432925,1748286649998,-430.0,0.00024657,3]
[362432926,1748286650010,-1958.07,0.00024657,3]
[362432927,1748286650023,-2579.38541535,0.00024657,3]
[362432928,1748286650033,-430.0,0.00024657,3]
[362432929,1748286650043,-430.0,0.00024657,3]
[362432930,1748286650052,-430.0,0.00024657,3]
[362432931,1748286650063,-430.0,0.00024657,3]
[362432932,1748286650074,-430.0,0.00024657,3]
[362432933,1748286650086,-430.0,0.00024657,3]
[362432934,1748286650097,-430.0,0.00024657,3]
[362432935,1748286650107,-430.0,0.00024657,3]
[362432936,1748286650117,-430.0,0.00024657,3]
[362432937,1748286650127,-430.0,0.00024657,3]
[362432938,1748286650139,-430.0,0.00024657,3]
[362432939,1748286650149,-450.0,0.00024657,3]
[362432940,1748286650159,-430.0,0.00024657,3]
[362432941,1748286650168,-430.0,0.00024657,3]
[362432942,1748286650178,-430.0,0.00024657,3]
[362432943,1748286650187,-210.0,0.00024657,3]
[362432944,1748286650197,-430.0,0.00024657,3]
[362432945,1748286650207,-430.0,0.00024657,3]
[362432946,1748286650217,-430.0,0.00024657,3]
[362432947,1748286650226,-430.0,0.00024657,3]
[362432948,1748286650236,-2067.88,0.00024657,3]
[362432949,1748286650246,-404.88,0.00024657,3]
[362432950,1748286650255,-2067.88,0.00024657,3]
[362432951,1748286650265,-2067.88,0.00024657,3]
[362432952,1748286650275,-2067.88,0.00024657,3]
[362432953,1748286650284,-1278.61792918,0.00024657,3]
[362432954,1748286702747,10607.9,0.000246,120]
[362432955,1748287021402,10194.0,0.00024657,120]
[362432956,1748287537133,-472.21164203,0.00018899,2]
[362432957,1748287627096,-504.15255941,0.00018899,2]
[362432958,1748287627121,-365.46,0.00019457,2]
[362432959,1748287627144,-600.0,0.00021164,2]
[362432960,1748287627168,-730.92,0.00021226,2]
[362432961,1748287627194,-423.08503179,0.00021755,2]
[362432962,1748287627214,-160.0,0.00021873,2]
[362432963,1748287627235,-111.66494985,0.00021873,2]
[362432964,1748287633125,-48.33505015,0.00021873,2]
[362432965,1748287633147,-160.0,0.00021873,2]
[362432966,1748287633170,-600.0,0.0002226,2]
[362432967,1748287633191,-309.6372194,0.00022341,2]
[362432968,1748287633213,-448.49321892,0.00022557,2]
[362432969,1748287648082,-955.2819995,0.00022557,2]
[362432970,1748287716449,5991.34433296,0.000246,120]
[362432975,1748287725052,332.55984873,0.0002191,120]
[362432976,1748287747135,-153.5648257,0.000168,2]
[362432977,1748287747157,-1981.47266201,0.00017999,2]
[362432978,1748287747180,-273.03634135,0.00017999,2]
[362432979,1748287753136,-226.96365865,0.00017999,2]
[362432980,1748287753158,-500.0,0.00017999,2]
[362432981,1748287753178,-181.23584675,0.00017999,2]
[362432982,1748287753201,-500.0,0.00017999,2]
[362432983,1748287753222,-452.6704771,0.00017999,2]
[362432984,1748287753244,-500.0,0.00017999,2]
[362432985,1748287753267,-500.0,0.00017999,2]
[362432986,1748287753289,-500.0,0.00017999,2]
[362432987,1748287753315,-307.31737012,0.00017999,2]
[362432988,1748287753335,-500.0,0.00017999,2]
[362432989,1748287753358,-500.0,0.00017999,2]
[362432990,1748287753378,-500.0,0.00017999,2]
[362432991,1748287753401,-500.0,0.00017999,2]
[362432992,1748287753423,-453.75533657,0.00017999,2]
[362432993,1748287753444,-500.0,0.00017999,2]
[362432994,1748287753466,-500.0,0.00017999,2]
[362432995,1748287753487,-500.0,0.00017999,2]
[362432996,1748287753508,-500.0,0.00017999,2]
[362432997,1748287753529,-500.0,0.00017999,2]
[362432998,1748287753553,-500.0,0.00017999,2]
[362432999,1748287753574,-591.18453886,0.00017999,2]
[362433000,1748287753594,-500.0,0.00017999,2]
[362433001,1748287753615,-500.0,0.00017999,2]
[362433002,1748287753636,-500.0,0.00017999,2]
[362433003,1748287753657,-500.0,0.00017999,2]
[362433004,1748287753678,-500.0,0.00017999,2]
[362433005,1748287753699,-500.0,0.00017999,2]
[362433006,1748287753721,-500.0,0.00017999,2]
[362433007,1748287753742,-42886.20309739,0.00018,2]
[362433008,1748287753762,-12230.90967065,0.00018,2]
[362433009,1748287753782,-8894.92748084,0.00018,2]
[362433010,1748287753803,-17314.71479523,0.00018149,2]
[362433011,1748287753825,-345.53,0.00019756,2]
[362433012,1748287753845,-500.0,0.00021164,2]
[362433013,1748287753978,-691.05,0.00021552,2]
[362433014,1748287753998,-990.43136736,0.00022,2]
[362433017,1748287804907,326.68,0.0001983,2]
[362433075,1748287841139,-174.05172094,0.00021633,2]
[362433094,1748287871299,1112.0,0.00024649,120]
[362433095,1748287878267,317.58,0.00019792,2]
[362433097,1748287926901,166.876215,0.00013699,2]
[362433098,1748288827121,-289.52825411,0.00018585,2]
[362433099,1748288836116,-23.00955526,0.00018585,2]
[362433100,1748288836138,-151.0,0.00019643,2]
[362433101,1748288836160,-156.587,0.00019698,2]
[362433102,1748288836195,-162.380719,0.00019753,2]
[362433103,1748288836220,-437.53349047,0.00019754,2]
[362433104,1748288836244,-300.0,0.00019754,2]
[362433105,1748288836267,-24900.0,0.00019755,2]
[362433106,1748288836289,-1070.988131,0.00019763,2]
[362433107,1748288836314,-311.8,0.00019764,2]
[362433108,1748288836354,-168.3888056,0.00019808,2]
[362433109,1748288836394,-174.61919141,0.00019863,2]
[362433110,1748288836433,-298.50928398,0.00019918,2]
[362433111,1748288836473,-155.58897976,0.0002,4]
[362433112,1748288836515,-781.3407655,0.00020284,2]
[362433113,1748288836554,-872.595555,0.00020336,2]
[362433114,1748288836589,-429.3014736,0.00020363,2]
[362433115,1748288836620,-178.806015,0.00020536,2]
[362433116,1748288836649,-500.0,0.00020742,2]
[362433117,1748288836684,-152.0,0.00021106,2]
[362433118,1748288836719,-800.0,0.00021164,2]
[362433119,1748288836748,-162.56,0.00021418,2]
[362433120,1748288836776,-300.0,0.00021424,2]
[362433121,1748288836815,-300.0,0.00021425,2]
[362433122,1748288836845,-1200.0,0.00021425,2]
[362433123,1748288836877,-300.0,0.00021425,2]
[362433124,1748288836913,-300.0,0.00021425,2]
[362433125,1748288836946,-157.89,0.00021428,2]
[362433126,1748288836978,-8553.8272476,0.00021428,2]
[362433127,1748288837010,-5708.0,0.000215,2]
[362433128,1748288837040,-420.0,0.00021515,2]
[362433129,1748288837071,-623.6,0.00021561,2]
[362433130,1748288837102,-211.36820626,0.00021705,2]
[362433131,1748288837132,-212.59253735,0.00021805,2]
[362433132,1748288837161,-160.0,0.00021805,2]
[362433133,1748288837189,-160.0,0.00021805,2]
[362433134,1748288837218,-160.0,0.00021805,2]
[362433135,1748288837247,-463.8245551,0.00021836,2]
[362433136,1748288837277,-500.0,0.00021899,2]
[362433137,1748288837308,-500.0,0.00021899,2]
[362433138,1748288837339,-500.0,0.00021899,2]
[362433139,1748288837372,-500.0,0.00021899,2]
[362433140,1748288837403,-500.0,0.00021899,2]
[362433141,1748288837440,-500.0,0.00021899,2]
[362433142,1748288837471,-500.0,0.00021899,2]
[362433143,1748288837502,-399.29065119,0.00021899,2]
[362433144,1748288837535,-500.0,0.00021899,2]
[362433145,1748288837566,-500.0,0.00021899,2]
[362433146,1748288837591,-500.0,0.00021899,2]
[362433147,1748288837804,-500.0,0.00021899,2]
[362433148,1748288837828,-500.0,0.00021899,2]
[362433149,1748288837853,-500.0,0.00021899,2]
[362433150,1748288837878,-500.0,0.00021899,2]
[362433151,1748288837901,-359.13170006,0.00021899,2]
[362433152,1748288837924,-500.0,0.00021899,2]
[362433153,1748288837947,-500.0,0.00021899,2]
[362433154,1748288837970,-500.0,0.00021899,2]
[362433155,1748288837998,-660.33056414,0.000219,6]
[362433156,1748288838024,-5000.0,0.00021919,2]
[362433157,1748288838047,-500.0,0.00021919,2]
[362433158,1748288838070,-389.662,0.00021919,2]
[362433159,1748288838095,-2009.56863264,0.00022,2]
[362433160,1748288838127,-660.33056391,0.00022003,6]
[362433161,1748288838157,-660.33056391,0.00022107,6]
[362433162,1748288838181,-327.12378332,0.00022193,2]
[362433163,1748288838213,-660.33056391,0.0002221,6]
[362433164,1748288838237,-800.0,0.0002226,2]
[362433165,1748288838269,-190.04011203,0.00022314,7]
[362433166,1748288841125,-470.29045188,0.00022314,7]
[362433167,1748288841150,-174.2865763,0.00022384,2]
[362433168,1748288841181,-660.33056391,0.00022417,7]
[362433169,1748288841203,-233.782565,0.00022447,2]
[362433170,1748288841230,-339.69935461,0.00022521,7]
[362433175,1748288945135,-294.79,0.00019763,2]
[362433176,1748288945157,-184.12186734,0.0002,2]
[362433177,1748288945180,-700.0,0.00021164,2]
[362433178,1748288945204,-545.65943473,0.00021559,2]
[362433179,1748288959440,-288.37,0.00020027,2]
[362433180,1748288959465,-526.50071492,0.00021848,2]
[362433182,1748289021582,168.45195,0.00013699,2]
[362433228,1748289032213,-273.55,0.00019771,2]
[362433230,1748289032223,-379.85133027,0.00019819,2]
[362433232,1748289032235,-900.1571553,0.00019819,2]
[362433235,1748289032248,-1540.26249921,0.00019819,2]
[362433237,1748289032258,-547.11,0.00021568,2]
[362433238,1748289032268,-700.0,0.0002226,2]
[362433240,1748289032278,-160.0,0.00022548,2]
[362433242,1748289032292,-212.59253735,0.00022549,2]
[362433245,1748289032303,-160.0,0.00022549,2]
[362433246,1748289032312,-160.0,0.00022549,2]
[362433248,1748289032322,-202.1907761,0.0002257,2]
[362433250,1748289032332,-475.5629856,0.00022749,2]
[362433252,1748289032342,-1200.0,0.00023041,2]
[362433254,1748289032351,-207.4,0.00023042,2]
[362433256,1748289032362,-160.49780129,0.0002326,2]
[362433258,1748289032371,-420.0,0.00023294,2]
[362433260,1748289032381,-162.56,0.00023346,2]
[362433263,1748289032391,-700.0,0.00023356,2]
[362433266,1748289032401,-820.66,0.00023366,2]
[362433269,1748289032410,-160.49780129,0.00023479,2]
[362433272,1748289032419,-257.8100361,0.00023479,2]
[362433275,1748289032428,-153.0,0.00023479,2]
[362433278,1748289032437,-153.0,0.00023479,2]
[362433281,1748289032446,-4207.17004742,0.000235,2]
[362433285,1748289032457,-792.82995258,0.000235,2]
[362433288,1748289032466,-160.49780129,0.00023562,2]
[362433291,1748289032476,-160.49780129,0.00023671,2]
[362433294,1748289032485,-151.0,0.00023855,2]
[362433297,1748289032494,-151.0,0.00023855,2]
[362433299,1748289032503,-151.0,0.00023855,2]
[362433301,1748289032512,-151.0,0.00023855,2]
[362433303,1748289032521,-151.0,0.00023855,2]
[362433305,1748289032532,-151.0,0.00023855,2]